[Event "98th Caplin Hastings Masters 2024-25"]
[Site "Hastings"]
[Date "2024.12.29"]
[Round "2.7"]
[White "Seo, Jung Min"]
[Black "Roux, Baptiste"]
[Result "1-0"]
[ECO "B30"]
[WhiteElo "2491"]
[BlackElo "2338"]
[Annotator "TA"]
[PlyCount "77"]
[EventDate "2024.12.23"]
[EventType "swiss"]
[EventCountry "ENG"]
[SourceTitle "playchess.com"]
[Source "ChessBase"]
[SourceQuality "1"]
[TimeControl "5400+30"]

{[%evp 16,77,20,25,27,39,59,62,50,76,60,36,35,-24,62,42,193,188,212,206,289,287,289,285,343,341,340,351,500,492,636,553,684,664,647,643,605,445,564,486,908,890,995,979,1018,970,997,997,1463,1499,4021,3468,29979,29980,29980,29978,29973,1006,29987,29988,29988,29989,29989,29985]} 1. e4 {[%emt 0:00:02]} c5 {[%emt 0:06:07]} 2. Nf3 {[%emt 0:00:04]} Nc6 {[%emt 0:00:20]} 3. Bb5 {[%emt 0:00:12]} e6 {[%emt 0:00:34]} 4. c3 {[%emt 0:01:45]} Nge7 {[%emt 0:01:28]} 5. O-O {[%emt 0:02:42]} a6 {[%emt 0:00:08]} 6. Ba4 {[%emt 0:12:40]} b5 {[%emt 0:00:17]} 7. Bc2 {[%emt 0:00:17]} Bb7 {[%emt 0:00:55]} 8. Re1 {[%emt 0:00:37]} Rc8 {[%emt 0:00:32]} 9. a4 {[%emt 0:00:48]} b4 {[%emt 0:03:54]} 10. d4 {[%emt 0:02:22][%cal Bd2d4,Bd4d5][%mdl 32]} bxc3 {[%emt 0:13:14]} 11. d5 {[%emt 0:00:41]} (11. Nxc3 cxd4 12. Nxd4 Na5) (11. dxc5 cxb2 12. Bxb2 Ng6 $15) 11... cxb2 {[%emt 0:02:00]} 12. Bxb2 {[%emt 0:00:16]} Nb4 {[%emt 0:01:13][%cal Re6d5]} 13. Nbd2 {[%emt 0:25:13][%mdl 1024] White has compensation.} c4 $1 {[%emt 0:07:24] Hoping for ...c3.} 14. Bc3 {[%emt 0:17:30]} ({White should play} 14. dxe6 $14 fxe6 15. Rb1) 14... Ng6 {[%emt 0:01:43]} (14... a5 $1 $11) 15. a5 $1 $36 {[%emt 0:01:12][%mdl 2048] White is more active.} Qc7 $2 {[%emt 0:09:16]} ({Better is} 15... Nxc2 $14 16. Qxc2 f6) 16. Ra4 $18 {[%emt 0:00:59]} Nxc2 {[%emt 0:22:00]} 17. Qxc2 {[%emt 0:00:37]} Bc5 {[%emt 0:00:39]} (17... f6 18. Rxc4 (18. Nxc4 Bc5 $14) 18... Qd8) 18. Bxg7 {[%emt 0:05:56]} Rg8 {[%emt 0:00:06]} 19. Qc3 {[%emt 0:03:54]} d6 {[%emt 0:00:26]} 20. Rxc4 {[%emt 0:01:09]} (20. Nxc4 Qd7 21. Ra2 f5 $14) 20... Nf4 {[%emt 0:01:14][%cal Of7f5]} 21. g3 {[%emt 0:00:57]} e5 {[%emt 0:11:35]} (21... Nh3+ {was worth a try.} 22. Kg2 Nf4+ 23. Kf1 (23. gxf4 f6 $16) 23... Nxd5 24. exd5 Bxd5) 22. Bh6 {[%emt 0:02:41] Hoping for Bxf4.} Nh3+ {[%emt 0:02:59]} 23. Kf1 {[%emt 0:03:52][%cal Bg1f1,Bf1g2,Bg2h2][%mdl 32]} Nxf2 {[%emt 0:05:49]} 24. Be3 {[%emt 0:02:42]} Ng4 {[%emt 0:00:06]} 25. Bxc5 {[%emt 0:00:25]} dxc5 {[%emt 0:00:01]} 26. Rc1 {[%emt 0:01:27]} Qd7 {[%emt 0:00:46]} 27. Nxe5 {[%emt 0:03:03]} Nxh2+ {[%emt 0:03:12]} (27... Nxe5 $142 28. Qxe5+ Qe7) 28. Kg2 {[%emt 0:00:05]} Qd6 {[%emt 0:00:11]} 29. Kxh2 {[%emt 0:00:16]} f6 {[%emt 0:00:11]} 30. Nc6 {[%emt 0:02:36]} Bxc6 {[%emt 0:00:27]} 31. Rxc5 {[%emt 0:01:55]} Ke7 {[%emt 0:04:42][%cal Be8e7,Be7f8,Bf8f7][%mdl 32]} 32. dxc6 {[%emt 0:02:43]} Rg6 {[%emt 0:01:11]} 33. e5 {[%emt 0:01:38][%cal Be4e5,Be5f6][%mdl 32]} Rh6+ {[%emt 0:01:20]} 34. Kg1 {[%emt 0:00:08]} Qe6 {[%emt 0:00:45]} 35. exf6+ {[%emt 0:00:05]} Kf8 {[%emt 0:00:05]} 36. Qe5 {[%emt 0:00:42]} (36. Re5 $142 Qh3 37. Qc5+ Kg8 38. f7+ Kg7 39. Rg5+ Rg6 40. Qe7 Rf8 41. c7 Rxg5 42. Qxg5+ Kxf7 43. Re1) 36... Rxc6 {[%emt 0:00:25]} 37. Qb8+ {[%emt 0:01:26]} Kf7 {[%emt 0:00:10]} 38. Qb7+ {[%emt 0:00:11]} (38. Rxc6 Qe3+ 39. Kf1 Qd3+ 40. Kf2 (40. Kg1 Qd4+ 41. Kg2 Qxd2+ 42. Kf3 Qd3+ 43. Kg4 Rg6+ 44. Kh3 Rh6+ 45. Kg4 Rg6+ 46. Kh4 Rh6+ 47. Kg4 $11) 40... Qxd2+ 41. Kf3 Qd3+ 42. Kf2 Qd2+ 43. Kf3 Qd3+ 44. Kg4 Rg6+ 45. Kh4 Rh6+ 46. Kg4 Rg6+ 47. Kh4 Rh6+ 48. Kg4 $11) 38... Kf8 {[%emt 0:00:48]} 39. Qe7+ {[%emt 0:00:26]} ({And not} 39. Rxc6 Qe3+ 40. Kg2 (40. Kf1 Qd3+ 41. Kg2 Qxd2+ 42. Kf3 Qd3+ 43. Kf4 Qd4+ 44. Kf3 Qd3+ 45. Kf4 Qd4+ 46. Kf3 Qd3+ $11) 40... Qxd2+ 41. Kf3 Qd3+ 42. Kf4 (42. Kg4 $2 {gets mated.} Qe4+ 43. Kg5 Rg6+ 44. Kh5 Qg4#) 42... Qd4+ 43. Kf3 Qd3+ 44. Kf4 Qd4+ 45. Kf3 Qd3+ $11) 1-0

[Event "98th Caplin Hastings Masters 2024-25"]
[Site "Hastings"]
[Date "2024.12.29"]
[Round "2.8"]
[White "Gasanov, Eldar"]
[Black "Boswell, Jacob Connor"]
[Result "1/2-1/2"]
[ECO "A49"]
[WhiteElo "2476"]
[BlackElo "2277"]
[Annotator "TA"]
[PlyCount "56"]
[EventDate "2024.12.23"]
[EventType "swiss"]
[EventCountry "ENG"]
[SourceTitle "playchess.com"]
[Source "ChessBase"]
[SourceQuality "1"]
[TimeControl "5400+30"]

{[%evp 17,56,32,29,25,37,51,55,8,26,9,48,19,29,0,0,0,0,0,0,-48,-17,-26,-8,-33,-25,-41,8,-19,-14,-16,-23,-12,-4,-23,-9,-33,-8,-4,-3,-10,-12]} 1. d4 {[%emt 0:00:05]} Nf6 {[%emt 0:04:59]} 2. Nf3 {[%emt 0:02:19]} g6 {[%emt 0:01:25]} 3. g3 {[%emt 0:00:19]} Bg7 {[%emt 0:00:08]} 4. Bg2 {[%emt 0:00:06]} O-O {[%emt 0:01:03]} 5. O-O {[%emt 0:00:07]} d6 {[%emt 0:01:30]} 6. Re1 {[%emt 0:00:27]} c5 {[%emt 0:04:19]} 7. c3 {[%emt 0:01:47]} Bf5 {[%emt 0:10:13]} 8. dxc5 {[%emt 0:05:58]} dxc5 {[%emt 0:00:44]} 9. Qxd8 {[%emt 0:00:19]} Rxd8 {[%emt 0:00:10]} 10. Nfd2 {[%emt 0:00:05]} Rd7 {[%emt 0:04:57]} 11. Nb3 {[%emt 0:04:25]} Na6 {[%emt 0:01:56]} 12. Na3 {[%emt 0:03:13]} (12. Na5 $14) 12... Rc8 $11 {[%emt 0:11:06]} 13. Bf4 {[%emt 0:10:38]} Nh5 {[%emt 0:27:39]} 14. Be3 {[%emt 0:03:10] White wants to play Rad1.} (14. Bg5 $5) 14... b6 {[%emt 0:01:50]} 15. Rad1 {[%emt 0:12:14] Hoping for Rxd7.} Nc7 {[%emt 0:09:21]} 16. Rxd7 {[%emt 0:05:31]} Bxd7 {[%emt 0:00:02]} 17. Rd1 {[%emt 0:00:32]} Nf6 {[%emt 0:01:42]} 18. Nc4 {[%emt 0:02:36]} (18. Bb7 $11 Rd8 19. Bc6) 18... Ne6 {[%emt 0:04:02]} (18... Bb5 $5 19. Ne5 Bxe2 $15) 19. Ne5 {[%emt 0:03:53]} Ba4 {[%emt 0:00:32] and ...c4 would now be decisive} 20. Rd2 {[%emt 0:14:37]} Ne8 {[%emt 0:12:52]} 21. Nc4 $1 {[%emt 0:03:02]} Rd8 {[%emt 0:00:00]} (21... Bb5 $15 {was preferable.} 22. Na3 Ba6) 22. f4 {[%emt 0:05:17]} Bb5 {[%emt 0:00:00]} 23. Rxd8 {[%emt 0:01:14]} Nxd8 {[%emt 0:00:00]} 24. Nbd2 {[%emt 0:00:13]} Kf8 {[%emt 0:00:00]} 25. Kf2 {[%emt 0:03:03]} Nd6 {[%emt 0:00:00]} 26. Na3 {[%emt 0:02:21]} Bc6 {[%emt 0:00:00]} 27. Bxc6 {[%emt 0:02:59]} Nxc6 {[%emt 0:00:00]} 28. Kf3 {[%emt 0:01:14]} e5 {[%emt 0:00:00]} 1/2-1/2

[Event "98th Caplin Hastings Masters 2024-25"]
[Site "Hastings"]
[Date "2024.12.29"]
[Round "2.9"]
[White "Bozinakis, Pavlos"]
[Black "Kaasen, Tor Fredrik"]
[Result "0-1"]
[ECO "E92"]
[WhiteElo "2271"]
[BlackElo "2473"]
[Annotator "TA"]
[PlyCount "148"]
[EventDate "2024.12.23"]
[EventType "swiss"]
[EventCountry "ENG"]
[SourceTitle "playchess.com"]
[Source "ChessBase"]
[SourceQuality "1"]
[TimeControl "5400+30"]

{[%evp 30,148,16,18,29,27,35,43,36,0,0,-14,-20,-40,-45,-62,-36,-41,-2,-11,0,0,0,0,-6,-49,-46,-52,-60,-52,-16,-21,-20,-20,0,0,0,0,0,0,0,0,0,0,0,0,0,-36,-24,-33,-28,-83,-42,-53,-39,-62,-27,-17,-17,-20,-21,-16,-10,-91,-10,-18,-18,-18,0,-18,-18,-18,0,-60,-60,-56,-71,-89,-83,-100,-91,-119,-122,-97,-88,-146,-93,-235,-114,-129,-120,-144,-131,-238,-112,-366,-361,-6719,-2159,-29977,-29978,-29978,-29979,-29979,-29980,-29980,-29981,-29981,-29982,-29982,-29983,-29983,-29983,-29985,-29986,-29986,-29987,-29987,-29988,-29992,-29993]} 1. d4 {[%emt 0:00:18]} Nf6 {[%emt 0:01:17]} 2. c4 {[%emt 0:00:13]} g6 {[%emt 0:02:11]} 3. Nc3 {[%emt 0:00:36]} Bg7 {[%emt 0:00:55]} 4. e4 {[%emt 0:00:21]} d6 {[%emt 0:00:32]} 5. Nf3 {[%emt 0:00:27]} O-O {[%emt 0:00:38]} 6. Be2 {[%emt 0:00:19]} e5 {[%emt 0:00:26]} 7. Be3 {[%emt 0:03:33]} exd4 {[%emt 0:05:25]} 8. Nxd4 {[%emt 0:00:37]} Re8 {[%emt 0:00:08]} 9. f3 {[%emt 0:00:57]} c6 {[%emt 0:00:16]} 10. Bf2 {[%emt 0:00:58]} d5 {[%emt 0:02:13]} 11. exd5 {[%emt 0:00:27]} cxd5 {[%emt 0:00:08]} 12. O-O {[%emt 0:00:30]} Nc6 {[%emt 0:01:53]} 13. c5 {[%emt 0:01:06]} Nh5 {[%emt 0:00:45]} 14. Qd2 {[%emt 0:01:08]} Be5 {[%emt 0:02:03]} 15. g3 {[%emt 0:01:43]} Ng7 {[%emt 0:03:39]} 16. Rfd1 {[%emt 0:03:21]} a6 {[%emt 0:09:13] Prevents Ndb5} 17. Nb3 {[%emt 0:14:49]} Bxc3 {[%emt 0:04:19]} 18. bxc3 {[%emt 0:00:12]} Qf6 {[%emt 0:01:09]} 19. f4 {[%emt 0:05:31][%cal Od2b2]} Bf5 {[%emt 0:02:10]} 20. Bf1 {[%emt 0:05:25]} Be4 {[%emt 0:01:39]} 21. Bd4 {[%emt 0:00:29]} Nxd4 {[%emt 0:04:41]} 22. Qxd4 {[%emt 0:00:47]} Qc6 {[%emt 0:11:53]} 23. Bh3 {[%emt 0:08:37]} f5 {[%emt 0:07:27]} 24. c4 {[%emt 0:06:25][%cal Rc4d5]} Rad8 {[%emt 0:01:04]} 25. Bf1 {[%emt 0:01:51]} Ne6 {[%emt 0:03:57]} 26. cxd5 {[%emt 0:01:11]} Bxd5 {[%emt 0:04:26]} 27. Qf6 {[%emt 0:08:43]} (27. Qb4 {simplifies} Kg7 28. Rac1 Kh6 29. Na5) 27... Bxb3 {[%emt 0:07:09]} (27... Nxc5 28. Qxc6 Bxc6 29. Rxd8 (29. Nxc5 Bf3 $18) 29... Rxd8 30. Nxc5 $18) 28. axb3 {[%emt 0:02:26]} Qxc5+ {[%emt 0:05:30]} (28... Nxc5 $2 29. Bc4+ (29. Qxd8 $2 Rxd8 30. Rxd8+ Kg7 $19) 29... Ne6 30. Rxd8 $18 (30. Bxe6+ Qxe6 31. Qxe6+ Rxe6 $18)) 29. Kh1 {[%emt 0:00:10] and Rxd8 should not be overlooked} Qe7 {[%emt 0:00:27]} 30. Qe5 {[%emt 0:01:40]} Rxd1 {[%emt 0:04:37]} 31. Rxd1 {[%emt 0:00:11]} Ng7 {[%emt 0:00:10]} 32. Qd5+ {[%emt 0:05:01]} Kh8 {[%emt 0:00:08]} 33. Bg2 {[%emt 0:00:24]} b6 {[%emt 0:01:19]} 34. Bf3 {[%emt 0:02:24]} Qe6 {[%emt 0:04:21]} 35. Qd3 {[%emt 0:01:47]} a5 {[%emt 0:00:40]} 36. Kg2 {[%emt 0:00:52]} h6 {[%emt 0:00:18]} 37. Qb5 {[%emt 0:02:54]} Rc8 {[%emt 0:01:31]} 38. Rd2 {[%emt 0:01:16] Against Rc2} g5 {[%emt 0:01:29]} 39. fxg5 {[%emt 0:04:52]} (39. Qd7 gxf4 40. gxf4 Rc3 41. Qd4) 39... hxg5 {[%emt 0:00:04]} 40. Bb7 {[%emt 0:02:10]} (40. Qd5 $11 {keeps the balance.}) 40... Rc5 {[%emt 0:03:46]} (40... Rc1 {seems wilder.} 41. Re2 Qd6 42. Qd5 Rd1) 41. Qd3 {[%emt 0:00:44]} Kh7 {[%emt 0:00:18]} 42. Bf3 {[%emt 0:03:51]} Re5 {[%emt 0:00:30]} 43. Qd8 {[%emt 0:01:37]} g4 {[%emt 0:03:43]} 44. Bd5 {[%emt 0:02:14]} Qe8 {[%emt 0:01:08]} 45. Qd6 $1 {[%emt 0:02:02]} Qe7 $40 {[%emt 0:00:25][%mdl 128] Black mounts an attack.} 46. Qc6 {[%emt 0:00:54]} (46. Qxe7 $11 Rxe7 47. Bc4) 46... Re2+ {[%emt 0:00:57]} (46... Qg5 $17 47. Rf2 Qe7) 47. Rxe2 $11 {[%emt 0:00:07]} Qxe2+ {[%emt 0:00:01][%mdl 4096] Endgame KQB-KQN. Black is a pawn up.} 48. Kg1 {[%emt 0:00:11]} Qe3+ {[%emt 0:00:22]} 49. Kg2 {[%emt 0:01:37]} Qc5 {[%emt 0:00:28]} 50. Qd7 $1 {[%emt 0:01:11]} b5 {[%emt 0:00:45][%cal Oa5a4]} 51. Qf7 {[%emt 0:00:25]} (51. Bf7 $11) 51... Qc2+ {[%emt 0:00:12]} 52. Kg1 {[%emt 0:00:13]} Qc1+ {[%emt 0:00:03]} 53. Kg2 {[%emt 0:00:14]} Qb2+ {[%emt 0:00:03]} 54. Kg1 {[%emt 0:00:11]} a4 {[%emt 0:00:55]} 55. bxa4 {[%emt 0:00:12]} bxa4 {[%emt 0:00:02]} 56. Qg8+ {[%emt 0:01:01]} Kh6 {[%emt 0:00:08]} 57. Qf7 {[%emt 0:01:10]} a3 {[%emt 0:01:13]} (57... Qa1+ $142 58. Kg2 a3) 58. Bc4 {[%emt 0:00:23] [#]} (58. Kf1 $17) 58... Qc1+ {[%emt 0:01:10]} (58... Nh5 $1 $19 59. Kf1 Qd4 (59... Qxh2 60. Qe6+ Kg5 61. Qe7+ Kg6 62. Qe8+ Kh7 63. Qg8+ Kh6 64. Qe6+ Kg7 65. Qg8+ Kh6 66. Qe6+ $11)) 59. Kg2 $17 {[%emt 0:00:13]} Qd2+ {[%emt 0:00:05]} 60. Kg1 {[%emt 0:00:17]} Qg5 {[%emt 0:00:30]} 61. Qd5 {[%emt 0:01:31]} (61. Kf1 $17 {was necessary.}) 61... Qe7 {[%emt 0:00:46]} (61... Nh5 $19 {...Nf6 is the strong threat.} 62. Ba2 (62. Qd6+ $2 Qf6 $19) 62... Qe3+ 63. Kf1 Qe4 64. Qxe4 fxe4) 62. Kg2 $2 {[%emt 0:00:19][%mdl 8192]} (62. Kf2 $17) 62... Qe4+ $19 {[%emt 0:00:45]} 63. Qxe4 $2 {[%emt 0:02:45]} (63. Kf2 Ne8 64. Qf7) 63... fxe4 {[%emt 0:00:05] KB-KN. Black is a pawn up.} 64. h3 {[%emt 0:00:18]} Nf5 {[%emt 0:00:36]} 65. Ba2 {[%emt 0:01:43]} gxh3+ {[%emt 0:01:02]} 66. Kxh3 {[%emt 0:00:06]} e3 {[%emt 0:00:22]} 67. Kg2 {[%emt 0:00:35]} e2 {[%emt 0:00:11]} 68. Kf2 {[%emt 0:00:05] [#]} Nxg3 $1 {[%emt 0:00:06]} 69. Ke1 {[%emt 0:00:16]} (69. Bd5 Ne4+) 69... Kg5 {[%emt 0:00:12]} 70. Kd2 {[%emt 0:00:28]} Kf4 {[%emt 0:00:13]} 71. Bc4 {[%emt 0:00:05]} Kf3 {[%emt 0:01:02]} 72. Bxe2+ {[%emt 0:00:29]} Nxe2 {[%emt 0:00:04]} 73. Kc2 {[%emt 0:00:07] [#]} Nd4+ $1 {[%emt 0:00:05]} 74. Kc3 {[%emt 0:00:24]} Ke3 {[%emt 0:00:18]} 0-1

[Event "98th Caplin Hastings Masters 2024-25"]
[Site "Hastings"]
[Date "2024.12.29"]
[Round "2.10"]
[White "Kovchan, Alexander"]
[Black "Badacsonyi, Stanley"]
[Result "1/2-1/2"]
[ECO "E64"]
[WhiteElo "2455"]
[BlackElo "2266"]
[Annotator "TA"]
[PlyCount "103"]
[EventDate "2024.12.23"]
[EventType "swiss"]
[EventCountry "ENG"]
[SourceTitle "playchess.com"]
[Source "ChessBase"]
[SourceQuality "1"]
[TimeControl "5400+30"]

{[%evp 18,103,33,23,33,37,30,22,14,28,1,24,16,0,0,0,0,-16,-36,-38,-39,-45,-23,-35,-24,-37,-39,-56,-57,-56,-59,-67,148,152,152,156,150,158,153,160,153,154,152,152,151,160,164,89,95,89,89,94,82,67,234,220,196,67,60,54,102,68,81,79,57,36,114,95,85,54,78,0,1,0,15,8,162,79,206,197,144,0,0,0,0,0,0,0]} 1. d4 {[%emt 0:00:08]} Nf6 {[%emt 0:00:06]} 2. c4 {[%emt 0:00:15]} g6 {[%emt 0:00:04]} 3. g3 {[%emt 0:00:19]} Bg7 {[%emt 0:00:05]} 4. Bg2 {[%emt 0:00:08]} d6 {[%emt 0:00:06]} 5. Nc3 {[%emt 0:00:21]} O-O {[%emt 0:00:06]} 6. Nf3 {[%emt 0:00:12]} c5 {[%emt 0:00:06]} 7. d5 {[%emt 0:00:14]} e6 {[%emt 0:00:04]} 8. O-O {[%emt 0:00:33]} exd5 {[%emt 0:00:04]} 9. cxd5 {[%emt 0:00:09]} Re8 {[%emt 0:00:05]} 10. Bf4 {[%emt 0:00:29]} h6 {[%emt 0:00:09]} 11. Qc1 {[%emt 0:03:06]} g5 {[%emt 0:00:13][%cal Bg6g5,Bg5g4][%mdl 32]} 12. Be3 {[%emt 0:01:41]} Bf5 {[%emt 0:00:07]} 13. h4 {[%emt 0:01:34]} g4 $1 {[%emt 0:00:04]} 14. Nd2 {[%emt 0:01:18]} Rxe3 {[%emt 0:00:07]} 15. fxe3 {[%emt 0:00:23]} Bg6 {[%emt 0:00:03]} 16. Rf4 {[%emt 0:04:55]} Qe7 {[%emt 0:13:11][%cal Ob8d7]} 17. Nde4 {[%emt 0:02:07]} Nbd7 {[%emt 0:01:05][%cal Ob7b5]} 18. Nxf6+ {[%emt 0:11:50]} Nxf6 {[%emt 0:00:13]} 19. Qd2 {[%emt 0:00:54]} Re8 {[%emt 0:01:36][%cal Oe7d7][%mdl 1024] Black has compensation.} 20. Raf1 {[%emt 0:00:21]} h5 {[%emt 0:00:25][%cal Og7h6]} 21. Kh2 {[%emt 0:04:45]} Nd7 {[%emt 0:01:26][%cal Og7e5,Bf6d7,Bd7f8,Bf8h7,Bh7g5,Bg5e4][%mdl 32]} 22. Ne4 {[%emt 0:13:30]} Be5 {[%emt 0:02:21] This pair of bishops is nice.} 23. Qa5 {[%emt 0:07:29][%cal Oa5a7]} a6 {[%emt 0:09:39]} 24. Ng5 {[%emt 0:03:51][%cal Og2e4]} Bf6 $2 {[%emt 0:03:04]} (24... Bxf4 $6 25. exf4 f6 (25... Qxe2 26. f5 $16) 26. Ne6 $16) (24... Nf6 $1 $15 {keeps the upper hand.}) 25. Qc7 $1 $16 {[%emt 0:02:50][%cal Of4f6]} Bxg5 {[%emt 0:06:50]} 26. hxg5 {[%emt 0:00:27]} Nf8 {[%emt 0:00:01]} 27. Qxe7 {[%emt 0:02:42]} Rxe7 {[%emt 0:00:25]} 28. Rf6 $1 {[%emt 0:01:00]} Rd7 {[%emt 0:00:09]} 29. e4 {[%emt 0:03:28]} Nh7 {[%emt 0:01:29] [#] Repels e5} 30. e5 $1 {[%emt 0:01:53]} dxe5 {[%emt 0:01:06]} 31. Rb6 {[%emt 0:00:32] White is more active.} Nxg5 {[%emt 0:01:17]} 32. Rc1 {[%emt 0:00:32]} ({White should play} 32. Rff6 $1 $18) 32... Be4 {[%emt 0:02:51]} 33. Rxc5 {[%emt 0:00:29]} Bxg2 {[%emt 0:00:57]} 34. Kxg2 {[%emt 0:00:11][%mdl 4096] Endgame KRR-KRN} Ne4 {[%emt 0:00:05]} 35. Rc2 {[%emt 0:08:05][%cal Od5d6]} Kg7 $2 {[%emt 0:03:07] [#]} (35... Nd6 $14) 36. d6 $1 $18 {[%emt 0:02:19][%mdl 512]} Rxd6 {[%emt 0:05:01]} (36... Nxd6 $2 37. Rd2 Nc8 38. Rxd7 $18) (36... Rd8 37. Rxb7) 37. Rxb7 {[%emt 0:00:32]} ({Only move:} 37. Rxd6 $18 Nxd6 38. Rd2) 37... Rf6 $1 $14 {[%emt 0:00:20]} 38. Rb4 {[%emt 0:01:54]} Ng5 {[%emt 0:00:45]} 39. Rbc4 {[%emt 0:05:05]} Nh3 $1 {[%emt 0:01:01]} 40. e4 {[%emt 0:03:40]} Rd6 {[%emt 0:01:00]} 41. Rc6 {[%emt 0:00:58]} Rd3 {[%emt 0:00:16]} ({Better is} 41... Rd4 $14) 42. Rxa6 $16 {[%emt 0:00:48]} Re3 {[%emt 0:00:28]} 43. Rac6 {[%emt 0:03:22]} Rxe4 {[%emt 0:01:42]} 44. b3 {[%emt 0:00:55]} (44. Kf1 $16 Rd4 45. R6c5) 44... Re1 $1 $11 {[%emt 0:00:14]} 45. R6c5 {[%emt 0:01:16]} f6 {[%emt 0:00:30]} 46. a4 {[%emt 0:00:34][%cal Ba2a4,Ba4a5][%mdl 32]} Rg1+ {[%emt 0:00:17]} (46... e4 $11 47. Rc1 (47. Rxh5 e3 $16) 47... Re2+ 48. Kf1 Rf2+ 49. Ke1 Rf3) 47. Kh2 $16 {[%emt 0:00:07]} Rb1 {[%emt 0:00:04] [#]} (47... Re1 $16) 48. a5 $1 $18 {[%emt 0:00:41]} Ng5 {[%emt 0:00:07] [#]} (48... e4 $18 49. a6 (49. Rxh5 e3 $14) 49... Ra1) 49. Ra2 {[%emt 0:00:36]} (49. Kg2 $1 $16) 49... Nf3+ $11 {[%emt 0:00:18]} 50. Kg2 {[%emt 0:00:03]} Ne1+ {[%emt 0:00:07]} 51. Kh2 {[%emt 0:00:10] Threatens to win with Rc3.} Nf3+ {[%emt 0:00:05]} 52. Kg2 {[%emt 0:00:11]} 1/2-1/2

[Event "98th Caplin Hastings Masters 2024-25"]
[Site "Hastings"]
[Date "2024.12.29"]
[Round "2.11"]
[White "Steiners, Emils"]
[Black "Gormally, Daniel W"]
[Result "0-1"]
[ECO "E73"]
[WhiteElo "2209"]
[BlackElo "2424"]
[Annotator "TA"]
[PlyCount "110"]
[EventDate "2024.12.23"]
[EventType "swiss"]
[EventCountry "ENG"]
[SourceTitle "playchess.com"]
[Source "ChessBase"]
[SourceQuality "1"]
[TimeControl "5400+30"]

{[%evp 21,110,18,20,15,25,15,27,29,15,22,36,40,34,42,39,49,35,30,48,50,24,36,38,50,34,-24,-20,-47,-53,-115,-120,-151,-152,-149,-153,-165,-158,-155,-144,-183,-201,-179,-68,-269,-271,-256,-267,-268,-251,-256,-287,-284,-288,-377,-230,-218,-209,-229,-213,-229,-203,-229,-213,-228,-214,-216,-191,-219,-202,-227,-219,-265,-265,-537,-537,-528,-491,-491,-483,-392,-286,-29970,-29973,-29983,-29984,-29988,-29982,-29983,-29984,-29994,-29995]} 1. d4 {[%emt 0:00:04]} Nf6 {[%emt 0:00:23]} 2. c4 {[%emt 0:00:07]} g6 {[%emt 0:00:28]} 3. Nc3 {[%emt 0:00:10]} Bg7 {[%emt 0:00:09]} 4. e4 {[%emt 0:00:18]} d6 {[%emt 0:00:10]} 5. Be2 {[%emt 0:00:09]} O-O {[%emt 0:00:35]} 6. Bg5 {[%emt 0:00:12]} h6 {[%emt 0:00:15]} 7. Be3 {[%emt 0:00:06]} c5 {[%emt 0:01:01]} 8. d5 {[%emt 0:00:12]} Nbd7 {[%emt 0:02:21]} 9. Qd2 {[%emt 0:03:37]} Kh7 {[%emt 0:00:31]} 10. h3 {[%emt 0:07:57]} b5 {[%emt 0:02:30]} 11. cxb5 {[%emt 0:02:15]} a6 {[%emt 0:00:07]} 12. Nf3 {[%emt 0:06:54]} Qa5 {[%emt 0:02:50]} 13. b6 {[%emt 0:07:38]} Nxb6 {[%emt 0:07:01]} 14. a3 {[%emt 0:10:00]} Bd7 {[%emt 0:18:48]} 15. O-O {[%emt 0:08:43]} Na4 {[%emt 0:00:10]} 16. b4 {[%emt 0:04:41]} Qd8 {[%emt 0:01:48]} 17. Nxa4 {[%emt 0:03:22]} Bxa4 {[%emt 0:00:07]} 18. Bd3 {[%emt 0:02:07]} (18. bxc5 Nxe4 19. Qc1 (19. Qb4 $2 Nc3 $19) 19... dxc5 $19) 18... c4 $1 {[%emt 0:02:46]} 19. Bc2 {[%emt 0:01:26]} c3 {[%emt 0:00:26]} 20. Qd1 {[%emt 0:02:09]} (20. Qxc3 $2 Nxd5 21. Qd3 Nxe3 22. Bxa4 Nxf1 23. Rxf1 Rc8 24. Qxa6 Ra8 $19) 20... Bxc2 {[%emt 0:01:06]} 21. Qxc2 {[%emt 0:00:19]} Qd7 {[%emt 0:04:23]} 22. Nd4 {[%emt 0:07:29]} (22. Qxc3 $2 Nxd5 (22... Nxe4 $2 23. Qb3 $17) 23. Qd3 Nxe3 24. Qxe3 Bxa1 25. Rxa1 Rac8 $19) 22... Rfc8 {[%emt 0:01:13]} 23. Ne2 {[%emt 0:10:24]} ({Better is} 23. f3 $14) 23... e6 $11 {[%emt 0:05:59]} 24. dxe6 {[%emt 0:04:33]} Qxe6 {[%emt 0:00:06]} 25. Ng3 {[%emt 0:01:13]} (25. Nxc3 Nh5 26. Bd2 Rxc3 27. Bxc3 Rc8 $19) (25. Rac1 $15) 25... Rc4 $17 {[%emt 0:06:29]} 26. Rae1 {[%emt 0:02:15]} Re8 {[%emt 0:04:10]} 27. f3 {[%emt 0:01:17]} d5 {[%emt 0:03:32]} 28. exd5 {[%emt 0:01:16]} Qxd5 {[%emt 0:01:51]} (28... Nxd5 29. Bf2 Qc6 30. Rxe8 Qxe8 31. Ne4 $17) 29. Rd1 {[%emt 0:01:30]} Qc6 {[%emt 0:05:41]} 30. Bf2 {[%emt 0:01:22]} a5 {[%emt 0:01:07]} 31. bxa5 {[%emt 0:00:58]} Qa4 {[%emt 0:02:31]} (31... Re5 $19 32. Rfe1 Rxa5) 32. Qd3 $2 {[%emt 0:03:36]} (32. Qxa4 $15 Rxa4 33. Rd3) 32... Rec8 $19 {[%emt 0:02:06]} 33. Rc1 {[%emt 0:02:16]} Qxa5 {[%emt 0:03:24]} (33... Qxa3 34. a6 $15) 34. Rc2 {[%emt 0:00:42]} Qxa3 {[%emt 0:00:06]} 35. Ne2 {[%emt 0:00:35]} Qa5 {[%emt 0:04:33]} 36. Rd1 {[%emt 0:00:27]} R4c7 {[%emt 0:00:34]} 37. Bd4 {[%emt 0:02:11]} Nd5 {[%emt 0:05:56]} 38. Bxg7 {[%emt 0:00:19]} Nb4 {[%emt 0:00:04]} 39. Qe3 {[%emt 0:00:38]} Kxg7 {[%emt 0:00:06]} (39... Nxc2 40. Qxh6+ Kg8 41. Qh8#) 40. Qd4+ {[%emt 0:02:31]} Kh7 {[%emt 0:01:54]} 41. Rxc3 {[%emt 0:00:20]} Rxc3 {[%emt 0:01:00]} 42. Nxc3 {[%emt 0:00:18]} Nc2 {[%emt 0:00:34]} 43. Qf6 {[%emt 0:02:50]} Qxc3 {[%emt 0:00:39]} ({Weaker is} 43... Rxc3 44. Qxf7+ Kh8 45. Qf8+ Kh7 46. Rd7#) 44. Qxf7+ {[%emt 0:00:22]} Qg7 {[%emt 0:00:06]} 45. Qe6 {[%emt 0:00:08] [#]} Rc7 $1 {[%emt 0:00:36]} 46. h4 {[%emt 0:00:31]} Re7 {[%emt 0:02:18]} 47. Qb3 $2 {[%emt 0:00:45]} (47. Qd6 {was the only defense.}) 47... Ne3 $19 {[%emt 0:00:45]} 48. Rd8 {[%emt 0:00:24]} Nf5 {[%emt 0:02:42]} 49. h5 {[%emt 0:00:40]} gxh5 {[%emt 0:01:56]} 50. Qb1 {[%emt 0:00:40]} Qg6 {[%emt 0:01:46]} 51. Qb4 $2 {[%emt 0:00:29]} (51. Rf8 $19 Nh4 52. Qxg6+ Kxg6 53. Rb8) 51... Re2 {[%emt 0:02:33]} 52. g4 {[%emt 0:00:32]} hxg4 {[%emt 0:00:50]} 53. fxg4 {[%emt 0:00:08]} Ng7 {[%emt 0:00:34]} 54. Rd1 {[%emt 0:00:53]} Re4 {[%emt 0:00:08]} 55. Qc3 {[%emt 0:00:30]} Qxg4+ {[%emt 0:00:12]} 0-1